Cogmind - Beta 13 @@@ ROGUE MODE // 2024.04.08 @ 12:57:02 Player: dohmmass Result: Destroyed by G-47 Trooper with Particle Gun Performance ------------- Evolutions (2) 1000 Regions Visited (3) 600 Robots Destroyed (48) 240 Value Destroyed (1189) 1189 Prototype IDs (3) 60 Alien Tech Used (0) 0 Bonus (56) 56 TOTAL SCORE: 3145 Bonus ------- High Alert Combat Kills 56 Cogmind --------- Core Integrity 0/550 Matter 287/300 Energy 60/100 System Corruption 4% Temperature Warm (198) Movement Core (50) Location -8/Materials Parts ------- > --- POWER (2) -------- (None) > --- PROPULSION (2) --- (None) > --- UTILITY (5) ------ Utility Shielding > --- WEAPON (2) ------- (None) > --- INVENTORY (5) ---- Light Treads Peak State ------------ > --- POWER ------------ Cooled Ion Engine Cooled Ion Engine > --- PROPULSION ------- Light Treads Light Treads > --- UTILITY ---------- Heat Sink Targeting Computer Utility Shielding Light Armor Plating Light Armor Plating > --- WEAPON ----------- Advanced Beam Cannon Advanced Beam Cannon > --- INVENTORY -------- Light Armor Plating Light Armor Plating Advanced Beam Cannon [Rating: 19] Favorites ----------- Power Cooled Ion Engine Engine Cooled Ion Engine Propulsion Light Treads Treads Light Treads Utility Heat Sink Device Heat Sink Processor Signal Interpreter Protection Utility Shielding Weapon Advanced Beam Cannon Energy Gun Medium Laser Energy Cannon Advanced Beam Cannon Build | -11 -10 -9 -8 ------- Run | Yrd Mat Mat Mat Slots Evolved 4 | . . 2 2 Power 1 | . . 1 . Propulsion . | . . . . Utility 3 | . . 1 2 Weapon . | . . . . Parts Attached 29 | 5 3 14 7 Power 5 | 1 . 4 . Engine 5 | 1 . 4 . Core . | . . . . Reactor . | . . . . Propulsion 5 | 2 . 2 1 Treads 5 | 2 . 2 1 Leg . | . . . . Wheel . | . . . . Hover . | . . . . Flight . | . . . . Utility 11 | . 2 5 4 Device 3 | . 1 2 . Storage . | . . . . Processor 2 | . 1 1 . Hackware . | . . . . Protection 6 | . . 2 4 Artifact . | . . . . Weapon 8 | 2 1 3 2 Energy Gun 3 | 2 . . 1 Energy Cannon 5 | . 1 3 1 Ballistic Gun . | . . . . Ballistic Cannon . | . . . . Launcher . | . . . . Special Weapon . | . . . . Impact Weapon . | . . . . Slashing Weapon . | . . . . Piercing Weapon . | . . . . Special Melee Weapon . | . . . . Unidentified Prototypes 3 | . . 3 . Parts Lost 15 | . . 1 14 Power 2 | . . . 2 Propulsion 2 | . . . 2 Utility 7 | . . 1 6 Weapon 4 | . . . 4 Highest Loss Streak 10 | . . 1 10 To Critical Strikes . | . . . . Average Slot Usage (%) 87 | . 87 90 78 Engine 18 | . 14 20 13 Treads 20 | . 28 22 10 Device 13 | . 8 15 6 Processor 10 | . 8 11 8 Protection 6 | . . 2 23 Energy Gun 1 | . 17 . . Energy Cannon 16 | . 10 16 15 Naked Turns . | . . . . Heaviest Build 34 | 8 11 26 34 Greatest Support 40 | 40 40 40 40 Greatest Overweight (x) 7 | . . . 7 Average Overweight (x) . | . . . . Largest Inventory Capacity 5 | 5 5 5 5 Average Capacity 5 | 5 5 5 5 Most Carried 5 | 5 3 5 4 Average Carried 2 | . 1 2 2 Final Capacity 5 | 5 5 5 5 Final Carried 5 | . 2 5 1 Class Distribution -------------------- 50% | Mutant 49% | Scavenger-Mutant Dominant Class ---------------- Mutant | -10/Materials Scavenger-Mutant | -9/Materials Mutant | -8/Materials Resources | -11 -10 -9 -8 ----------- Run | Yrd Mat Mat Mat Matter Collected 741 | 231 93 140 277 Remotely . | . . . . Salvage Created 1736 | . 108 1180 448 Parts 101 | . 7 74 20 Haulers Intercepted 7 | . 1 4 2 Recyclers Shooed 1 | . . 1 . Parts Field Recycled . | . . . . Retrieved Matter . | . . . . Parts Self-Destructed . | . . . . Prevented . | . . . . Kills | -11 -10 -9 -8 ------- Run | Yrd Mat Mat Mat Combat Hostiles Destroyed 37 | . 1 29 7 Guns 1 | . . 1 . Cannons 34 | . 1 26 7 Classes Destroyed 7 | . 3 3 1 Builder 1 | . . 1 . Hauler 7 | . 1 4 2 Watcher 3 | . 1 2 . Swarmer 11 | . . 10 1 Grunt 22 | . 1 18 3 Duelist 1 | . . . 1 Sentry 3 | . . 1 2 Best Kill Streak 6 | . 3 6 2 Combat Bots Only 5 | . 1 5 2 Max Kills in Single Turn 1 | . 1 1 1 Gunslinging . | . . . . Exploded . | . . . . Melee . | . . . . Uniques/NPCs Destroyed . | . . . . Combat | -11 -10 -9 -8 -------- Run | Yrd Mat Mat Mat Hostile Shots Fired 227 | . 6 99 122 Missed 44 | . . 27 17 Damage Taken 2474 | . 67 753 1654 Core 653 | . 23 69 561 Absorbed by Shields . | . . . . Redirected to Shielding 7 | . . . 7 Core Remaining (%) 90 | 100 90 82 . Volleys Fired 149 | . 8 95 46 Largest 2 | . 2 2 2 Hottest 136 | . 110 136 136 Shots Fired 227 | . 16 143 68 Gun 21 | . 8 10 3 Cannon 206 | . 8 133 65 Launcher . | . . . . Special . | . . . . Kinetic . | . . . . Thermal 227 | . 16 143 68 Explosive . | . . . . Electromagnetic . | . . . . Robot Hit Streak 15 | . 3 11 15 Robot Miss Streak 4 | . 4 3 2 Penetration Max . | . . . . Secondary Targets . | . . . . Shots Hit Robots 147 | . 7 93 47 Core Hits 57 | . 4 35 18 Critical Kills 2 | . . 2 . Critical Parts Destroyed . | . . . . Critical Strikes 5 | . . 4 1 Burn 3 | . . 2 1 Meltdown 2 | . . 2 . Melee Attacks . | . . . . Impact . | . . . . Slashing . | . . . . Piercing . | . . . . Sneak Attacks . | . . . . Combat Hostiles . | . . . . Follow-up Attacks . | . . . . Damage Inflicted 2848 | . 114 1687 1047 Guns 131 | . 26 76 29 Cannons 2706 | . 88 1611 1007 Explosions . | . . . . Melee . | . . . . Ramming 11 | . . . 11 Kinetic . | . . . . Thermal 2837 | . 114 1687 1036 Explosive . | . . . . Electromagnetic . | . . . . Impact . | . . . . Slashing . | . . . . Piercing . | . . . . Highest Corruption 4 | . . . 4 Average Corruption 3 | . . . 3 Corruption Purged . | . . . . Corruption Blocked . | . . . . Overload Shots . | . . . . Overflow Damage 22 | . . 22 . Projectiles 22 | . . 22 . Explosions . | . . . . Melee . | . . . . Knockbacks . | . . . . Impact . | . . . . Kinetic . | . . . . Secondary . | . . . . Self-Inflicted Damage 5 | . . . 5 Shots . | . . . . Rammed 3 | . . . 3 Targets Rammed 3 | . . . 3 Kicked . | . . . . Crushed . | . . . . Highest Temperature 681 | . 372 392 681 Average Temperature 166 | . 164 100 271 Received Heat Transfer 1149 | . 36 312 801 Effects 22 | . 2 4 16 Shutdowns 2 | . 1 1 . Energy Bleed 2 | . . . 2 Interference 2 | . . . 2 Matter Decay 7 | . 1 . 6 Short Circuit 6 | . . 2 4 Damage (minor) 2 | . . 1 1 Damage (major) 1 | . . . 1 Siege Activations . | . . . . Robots Corrupted . | . . . . Combat Hostiles . | . . . . Parts Fried . | . . . . Impact Corruptions . | . . . . Robots Melted 3 | . . 3 . Combat Hostiles 2 | . . 2 . Parts Melted 11 | . . 6 5 Heat Transferred 5735 | . 259 3515 1961 Parts Sabotaged . | . . . . Parts Stolen . | . . . . Parts Stripped . | . . . . Power Chain Reactions . | . . . . Alert | -11 -10 -9 -8 ------- Run | Yrd Mat Mat Mat Peak Influence 515 | . 60 515 356 Initial 217 | . . 25 217 Average 280 | . 35 317 284 Maximum Alert Level 2 | . . 2 1 Low Security (%) 23 | 100 100 18 . Level 1 59 | . . 57 100 Level 2 16 | . . 23 . Level 3 . | . . . . Level 4 . | . . . . Level 5 . | . . . . High Security . | . . . . Max Security . | . . . . Squads Dispatched 7 | . 1 6 . Investigation 2 | . . 2 . Extermination . | . . . . Reinforcement 5 | . 1 4 . Assault . | . . . . Garrison . | . . . . Intercept . | . . . . Searches Triggered . | . . . . Construction Impeded . | . . . . Haulers Reinforced . | . . . . Active Scanning Responses . | . . . . Cargo Convoy Interrupts . | . . . . Stealth | -11 -10 -9 -8 --------- Run | Yrd Mat Mat Mat Distress Signals 3 | . 1 1 1 Communications Jammed . | . . . . Distress Signals . | . . . . Times Spotted 56 | . 3 36 17 Peak Tracking Total 10 | . 2 6 10 Tactical Retreats 1 | . . 1 . Traps | -11 -10 -9 -8 ------- Run | Yrd Mat Mat Mat Traps Triggered 1 | . . 1 . Indirectly . | . . . . Trap Hack Attempts . | . . . . Triggered . | . . . . Disarmed . | . . . . Reprogrammed . | . . . . Reused . | . . . . Traps Extracted . | . . . . Installed . | . . . . Triggered . | . . . . Machines | -11 -10 -9 -8 ---------- Run | Yrd Mat Mat Mat Machines Disabled 3 | . . 2 1 Max in Single Turn 1 | . . 1 1 Machines Repaired . | . . . . Machines Dismantled . | . . . . Machines Sabotaged . | . . . . Overloaded Fab Kills . | . . . . Hacking | -11 -10 -9 -8 --------- Run | Yrd Mat Mat Mat Machines Accessed 2 | . . 1 1 Terminals . | . . . . Fabricators . | . . . . Repair Stations . | . . . . Recycling Units . | . . . . Scanalyzers 2 | . . 1 1 Garrison Access . | . . . . Total Hacks 6 | . . 4 2 Successful 3 | . . 1 2 Failed 3 | . . 3 . Catastrophic . | . . . . Database Lockouts . | . . . . Manual . | . . . . Terminals . | . . . . Fabricators . | . . . . Repair Stations . | . . . . Recycling Units . | . . . . Scanalyzers 6 | . . 4 2 Garrison Access . | . . . . Terminal Hacks . | . . . . Fabricator Hacks . | . . . . Repair Station Hacks . | . . . . Recycling Unit Hacks . | . . . . Scanalyzer 3 | . . 1 2 Insert Component 2 | . . 1 1 Analyze 1 | . . . 1 Garrison Access Hacks . | . . . . Unauthorized Hacks . | . . . . Terminals . | . . . . Fabricators . | . . . . Repair Stations . | . . . . Recycling Units . | . . . . Scanalyzers . | . . . . Garrison Access . | . . . . Data Cores Recovered . | . . . . Used . | . . . . Hacking Detections 1 | . . 1 . Full Trace Events 1 | . . 1 . Feedback Events . | . . . . Feedback Blocked . | . . . . Robot Schematics Acquired . | . . . . Robots Built . | . . . . Authchips . | . . . . Time . | . . . . Total Robot Build Rating . | . . . . Part Schematics Acquired 1 | . . . 1 Parts Built . | . . . . Authchips . | . . . . Time . | . . . . Total Part Build Rating . | . . . . Parts Repaired . | . . . . Time . | . . . . Parts Recycled . | . . . . Recycled Matter . | . . . . Retrieved Matter . | . . . . Retrieved Components . | . . . . Parts Scanalyzed 2 | . . 1 1 Part Schematics Acquired 1 | . . . 1 Parts Damaged . | . . . . Bothacking | -11 -10 -9 -8 ------------ Run | Yrd Mat Mat Mat Used RIF Installer . | . . . . Robots Hacked . | . . . . Non-combat . | . . . . Combat . | . . . . Robot Hacks Applied . | . . . . Relay Couplers Released . | . . . . Fabnet Peak Effective % . | . . . . Robots Rewired . | . . . . Allies Hacked . | . . . . Hacks Repelled . | . . . . Allies | -11 -10 -9 -8 -------- Run | Yrd Mat Mat Mat Total Allies . | . . . . Largest Group . | . . . . Highest-Rated Group . | . . . . Highest-Rated Ally . | . . . . Total Orders . | . . . . Ally Attacks . | . . . . Total Damage . | . . . . Kills . | . . . . Allies Corrupted . | . . . . Allies Melted . | . . . . Intel | -11 -10 -9 -8 ------- Run | Yrd Mat Mat Mat Robot Analysis Total . | . . . . Derelict Logs Recovered . | . . . . Drone Launches . | . . . . Drone Recoveries . | . . . . Exploration | -11 -10 -9 -8 ------------- Run | Yrd Mat Mat Mat Turns Passed 1571 | 47 120 1108 296 Spaces Moved 637 | 30 56 456 95 Core 28 | 9 . . 19 Treads 609 | 21 56 456 76 Legs . | . . . . Wheels . | . . . . Hover . | . . . . Flight . | . . . . Fastest Speed 50 | 50 160 160 50 Average Speed 158 | 127 160 160 162 Slowest Speed 400 | 160 160 160 400 Overloaded Moves . | . . . . Propulsion Burnouts . | . . . . Robots Hopped . | . . . . Cave-ins Triggered . | . . . . Exploration Rate (%) 22 | 4 19 57 10 Regions Visited 3 Branch Regions . Pre-discovered Areas . | . . . . Known Exits Taken 1 | . 1 . . Unknown Exits Taken 2 | 1 . 1 . Scrap Searched . | . . . . Spaces Dug . | . . . . Terrain Destroyed . | . . . . Melee . | . . . . Projectile . | . . . . AOE . | . . . . Terrain Rammed . | . . . . Walls Destroyed . | . . . . Machines Disabled . | . . . . Actions | -11 -10 -9 -8 --------- Run | Yrd Mat Mat Mat Total 972 | 39 70 695 168 Wait 117 | . . 103 14 Move 634 | 29 55 455 95 Hop . | . . . . Pick Up 29 | 5 4 17 3 Fast Attach . | . . . . Attach 21 | 5 2 7 7 Detach 1 | . . 1 . Swap 8 | . 1 7 . Drop 10 | . . 10 . Fire 149 | . 8 95 46 Melee . | . . . . Ram 3 | . . . 3 Kick . | . . . . Crush . | . . . . Escape Stasis . | . . . . Rewire . | . . . . Trap . | . . . . Miscellaneous . | . . . . Route ------- -11/Scrapyard -10/Materials -9/Materials -8/Materials History --------- Turn | Location | Event 11 | -11/Scrapyard | Discovered new exit (range 16) 48 | -11/Scrapyard | Entered Materials 144 | -10/Materials | Discovered new exit (range 15) 166 | -10/Materials | Identified exit to Materials 168 | -10/Materials | Entered another Materials area 168 | -9/Materials | Evolved 2 slots: Power x1, Utility x1 304 | -9/Materials | Build established: Mutant 700 | -9/Materials | Build established: Scavenger-Mutant 1240 | -9/Materials | Discovered new exit (range 15) 1276 | -9/Materials | Entered another Materials area 1276 | -8/Materials | Evolved 2 slots: Utility x2 1443 | -8/Materials | Build established: Mutant 1545 | -8/Materials | Core integrity fell below 50% 1547 | -8/Materials | Lost 10 parts (2p1n5u2w) 1566 | -8/Materials | Core integrity fell below 20% 1572 | -8/Materials | Destroyed by G-47 Trooper with Particle Gun Last Messages --------------- 01551_ Overheating: Energy bleed (-13). 01552_ Overheating: Matter decay (-60). 01552_ K-01 Serf collects debris. 01553_ Adv. Beam Cannon destroyed. 01553_ Acquired Beam Rifle. 01555_ K-01 Serf collects debris. 01557_ G-47 Trooper suffers critical hit (Burn). 01559_ K-01 Serf collects debris. 01561_ Beam Rifle destroyed. 01563_ G-50 Soldier destroyed. 01563_ Acquired 67 matter. 01565_ K-01 Serf collects debris. 01566_ Overheating: Energy bleed (-11). 01568_ K-01 Serf collects debris. 01569_ Slammed into K-01 Serf. 01569_ Broken Targeting Computer destroyed. 01569_ System corrupted by crushing effect (+3). 01570_ Critical hit (Burn: +37). 01570_ Slammed into K-01 Serf. 01571_ Destabilizing: System corrupted (+1). Map ----- +----------------------------------------------------+ | | | | | | | ????????????????????????###############??????????? | | ????????????????????????# #??????????? | | ????????????????????????# #??????????? | | ????????????????????????# """ """ """ #??????????? | | ????????????????????????# """ """ """ #?#####?#### | | ????????????????????????# """ """ """ #?# #? | | ????????????????????????# #?# # | | ????????????????????????#######+#####+### # !** | | ?????????????????????????????# + ! ! + + !** | | ?????????????????????????????# # # # *** | | ?????????????????????????????# *# """# # | | ?????????????????????????????+ %# """# #? | | ?????????????????????????????# =%# ! """# #?#### | | ?????????????????????????????# [# # #????? | | ?????????????????????????????# ######## #????? | | ?????????????????????######### #??????# +????? | | ?????????????????????# "" ## =%#??????# #????? | | ?????????????????????# ""S ## =#??????# #????? | | ?????????????????????# "" ## +??????# #????? | | ?????????????????????# * ##[% #??????# #????? | | ???????########??????# gg ## #??????# #????? | | ?????? ??????# != g ## ##?????# #????? | | ?????? """ ?????####@### #####?# #????? | | ????? ! "" *!!######*=!=kk ?????? | | ????? "" !!!+[!%!*%*!* #????? | | ???# =!%!######!== ?????? | | ????############?????##+#+### ##########?????? | | ?????????????????????? ?##a ##??????????????? | | ?????????????????????? ??# #???????????????? | | ?????????????????????# ??# #???????????????? | | ?????????????????????# ??# #???????????????? | | ?????????????????????# ??# ???????????????? | | ?????????????????????# ??# ??????????????? | | ?????????????????????#######?? ?????????????? | | ?????????????????????????????? ####????????????? | | ?????????????????????????????? #???????????????? | | ?????????????????????????????? #???????????????? | | ??????????????????????????????? ?????????????????? | | ?????????????????????????????????????????????????? | | ?????????????????????????????????????????????????? | | ?????????????????????????????????????????????????? | | ?????????????????????????????????????????????????? | | ?????????????????????????????????????????????????? | | ?????????????????????????????????????????????????? | | ?????????????????????????????????????????????????? | | ?????????????????????????????????????????????????? | | ?????????????????????????????????????????????????? | +----------------------------------------------------+ Best States ------------- Heat Dissipation 41 Energy Generation 23 Energy Capacity 460 Matter Stores 300 Matter Capacity 300 Sight Range 16 Robot Scan Range 14 Terrain Scan Density 10 Armor Coverage 450 Utility Shielding 33 Evasion (%) 50 Targeting Accuracy 5 Recoil Reduction 2 Item Schematics ----------------- Adv. Beam Cannon | -8/Materials | Scanalyzed Robot Schematics ------------------ None Fabricated ------------ Nothing Alien Tech Used ----------------- None Achievements -------------- None Challenges ------------ None Game ------ Seed DerelictControlSubcomponent Manual? 0 Play Time 00:15:59 Cumulative 27.2 hours Start 2024.04.08 @ 12:43:51 End 2024.04.08 @ 12:57:02 Sessions 1 Manual Loads 0 Difficulty Rogue Special Mode None Game No. 57 Rogue 57 Adventurer 0 Explorer 0 Win Type - Total 0 Types 0/0/0/0/0/0/0/0/0 Lore% 16 Gallery% 32 Achievement% 22 Wizard Run 0 Options --------- Layout 1 ASCII 0 Keyboard 0 Movement Mouse Keybinds 0 Fullscreen 1 Font 24/Smallcaps Map View 50x35 Zoom Use 0% Tactical HUD 1 Map Filters NONE Filters NONE Steam 1 RUN: 35958b59-5a1f-4990-b8d0-8ede46c3dd47